bitfinex-derivatives/quotes_BTCF0:USTF0_20251225
["timestamp","ask_amount","ask_price","bid_price","bid_amount"]
[1766647332246,0.0113918,87844.0,87835.0,0.03]
[1766647332444,0.0113921,87842.0,87835.0,0.03]
[1766647333047,0.0113924,87839.0,87835.0,0.03]
[1766647339241,0.0113921,87842.0,87835.0,0.03]
[1766647340645,0.0113924,87840.0,87828.0,0.01872]
[1766647340846,0.0113924,87840.0,87828.0,0.02872]
[1766647344754,0.0113926,87838.0,87828.0,0.02872]
[1766647345555,0.0113922,87841.0,87828.0,0.02872]
[1766647346344,0.0113924,87839.0,87828.0,0.02872]
[1766647349358,0.0113921,87842.0,87828.0,0.02872]
[1766647350957,0.0113923,87840.0,87828.0,0.02872]
[1766647363771,0.011392,87843.0,87828.0,0.02872]
[1766647371981,0.01412,87845.0,87829.0,0.0113936]
[1766647372176,0.01412,87845.0,87829.0,0.0413936]
[1766647372667,0.01412,87845.0,87829.0,0.03]
[1766647375177,0.0113917,87844.0,87829.0,0.03]
[1766647380388,0.0113921,87842.0,87829.0,0.03]
[1766647382991,0.01412,87845.0,87829.0,0.03]
[1766647384187,0.0255117,87845.0,87829.0,0.03]
[1766647384396,0.01412,87845.0,87829.0,0.03]
[1766647385295,0.0113919,87843.0,87829.0,0.03]
[1766647385494,0.01412,87845.0,87829.0,0.03]
[1766647385495,0.0113922,87841.0,87829.0,0.03]
[1766647393593,0.01412,87845.0,87829.0,0.03]
[1766647395207,0.0113919,87843.0,87829.0,0.03]
[1766647404016,0.0255117,87845.0,87829.0,0.03]
[1766647404916,0.0113919,87843.0,87829.0,0.03]
[1766647417631,0.0113915,87846.0,87829.0,0.03]
[1766647421436,0.0113918,87844.0,87829.0,0.03]
[1766647424436,0.0113921,87842.0,87829.0,0.03]
[1766647425037,0.0113923,87840.0,87829.0,0.03]
[1766647426429,0.0113926,87838.0,87829.0,0.03]
[1766647426630,0.0113933,87833.0,87829.0,0.01]
[1766647426830,0.0113937,87829.0,87815.0,0.06276527]
[1766647427027,0.0113937,87829.0,87815.0,0.05176]
[1766647427423,0.0113933,87833.0,87815.0,0.05176]
[1766647427821,0.0113933,87833.0,87815.0,0.06332614]
[1766647428027,0.01156404,87833.0,87815.0,0.03017074]
[1766647431238,0.01156404,87833.0,87816.0,0.0113954]
[1766647431536,0.01156404,87833.0,87816.0,0.0413954]
[1766647433636,0.00017074,87833.0,87818.0,0.011395]
[1766647433839,0.0113921,87841.0,87823.0,0.0113944]
[1766647434039,0.01968,87840.0,87823.0,0.0413944]
[1766647434941,0.0113924,87839.0,87823.0,0.0413944]
[1766647436939,0.01968,87840.0,87825.0,0.0113941]
[1766647437244,0.01968,87840.0,87825.0,0.0413941]
[1766647443051,0.0310723,87840.0,87825.0,0.0413941]
[1766647449759,0.05636,87844.0,87825.0,0.03]
[1766647449962,0.0113913,87848.0,87825.0,0.03]
[1766647450260,0.0113913,87848.0,87831.0,0.0113933]
[1766647450462,0.0113913,87848.0,87831.0,0.0413933]
[1766647451562,0.0113916,87846.0,87831.0,0.0413933]
[1766647453266,0.0113916,87846.0,87831.0,0.03]
[1766647469774,0.0113918,87844.0,87831.0,0.03]
[1766647475676,0.0113914,87847.0,87831.0,0.0413934]
[1766647482879,0.0113914,87847.0,87833.0,0.0113931]
[1766647483078,0.0113914,87847.0,87833.0,0.0413931]
[1766647499896,0.011391,87850.0,87833.0,0.0413931]
[1766647500190,0.011391,87850.0,87833.0,0.04156384]
[1766647500591,0.0113913,87848.0,87833.0,0.04156384]
[1766647503992,0.06976618,87851.0,87833.0,0.03017074]
[1766647504193,0.0113915,87846.0,87833.0,0.03017074]
[1766647510496,0.0113912,87849.0,87833.0,0.03017074]
[1766647512413,0.0113915,87847.0,87833.0,0.03017074]
[1766647515315,0.05239728,87850.0,87833.0,0.03017074]
[1766647519014,0.05239728,87850.0,87833.0,0.04156384]
[1766647534926,0.0113913,87848.0,87833.0,0.03017074]
[1766647535117,0.0113913,87848.0,87833.0,0.04156384]
[1766647535317,0.0113913,87848.0,87833.0,0.03017074]
[1766647541229,0.04100618,87849.0,87833.0,0.03017074]
[1766647541431,0.04100618,87849.0,87834.0,0.011393]
[1766647541628,0.0401509,87851.0,87834.0,0.041393]
[1766647551838,0.04100618,87850.0,87834.0,0.041393]
[1766647570364,0.0113911,87849.0,87834.0,0.03]
[1766647580475,0.04100618,87850.0,87834.0,0.03]
[1766647580661,0.05239718,87850.0,87834.0,0.03]
[1766647581269,0.04100618,87849.0,87834.0,0.03]
[1766647585174,0.05239718,87850.0,87834.0,0.03]
[1766647590882,0.05239718,87850.0,87835.0,0.0113929]
[1766647591076,0.057,87850.0,87837.0,0.0113926]
[1766647591271,0.057,87850.0,87837.0,0.0413926]
[1766647592263,0.057,87850.0,87837.0,0.03]
[1766647599482,0.057,87850.0,87837.0,0.0413926]
[1766647602480,0.04328246,87863.0,87837.0,0.03]
[1766647602685,0.057,87862.0,87837.0,0.03]
[1766647603286,0.01139,87858.0,87837.0,0.03]
[1766647604282,0.01139,87858.0,87841.0,0.011392]
[1766647604580,0.01139,87858.0,87841.0,0.041392]
[1766647611295,0.0113896,87861.0,87843.0,0.0113918]
[1766647611593,0.057,87862.0,87843.0,0.03]
[1766647611894,0.00227628,87863.0,87843.0,0.03]
[1766647612294,0.00227628,87863.0,87849.0,0.011391]
[1766647612593,0.00227628,87863.0,87849.0,0.041391]
[1766647613395,0.00227628,87863.0,87854.0,0.0113904]
[1766647613594,0.00227628,87863.0,87854.0,0.0413904]
[1766647614588,0.05239278,87884.0,87854.0,0.0413904]
[1766647614589,0.057,87874.0,87854.0,0.03]
[1766647614777,0.011388,87873.0,87855.0,0.01156094]
[1766647615483,0.057,87874.0,87855.0,0.00017074]
[1766647615484,0.0113883,87871.0,87855.0,0.00017074]
[1766647615791,0.0113886,87869.0,87855.0,0.00017074]
[1766647619397,0.0113881,87872.0,87855.0,0.00017074]
[1766647622203,0.0113885,87870.0,87855.0,0.00017074]
[1766647628310,0.057,87874.0,87855.0,0.00017074]
[1766647629210,0.0113885,87870.0,87855.0,0.00017074]
[1766647629408,0.0113887,87868.0,87855.0,0.00017074]
[1766647631007,0.0113894,87863.0,87855.0,0.00017074]
[1766647631309,0.0113905,87854.0,87850.0,4e-08]
[1766647631505,0.0113908,87852.0,87841.0,0.05696]
[1766647631705,0.0113908,87852.0,87841.0,0.03]
[1766647632009,0.0113914,87847.0,87841.0,0.02]
[1766647632212,0.0113918,87844.0,87841.0,0.03]
[1766647632412,0.0113915,87846.0,87841.0,0.0033]
[1766647633117,0.0113911,87849.0,87841.0,0.0033]
[1766647635514,0.00017074,87853.0,87842.0,0.0074]
[1766647635818,0.0113913,87848.0,87842.0,0.03]
[1766647639820,0.0113909,87851.0,87842.0,0.03]
[1766647640626,0.00017074,87853.0,87842.0,0.03]
[1766647640812,0.0113892,87864.0,87845.0,0.0113915]
[1766647641029,0.01516,87863.0,87845.0,0.03]
[1766647641525,0.0113903,87856.0,87845.0,0.03]
[1766647643727,0.0113898,87859.0,87845.0,0.03]
[1766647645429,0.0113895,87862.0,87845.0,0.03]
[1766647647031,0.0113897,87860.0,87845.0,0.03]
[1766647649535,0.01139,87858.0,87845.0,0.03]
[1766647652623,0.0113896,87861.0,87845.0,0.03]
[1766647655135,0.0113899,87859.0,87845.0,0.03]
[1766647656738,0.01516,87863.0,87845.0,0.03]
[1766647657536,0.0113907,87853.0,87845.0,0.03]
[1766647663841,0.0113902,87856.0,87845.0,0.03]
[1766647665347,0.0113906,87854.0,87845.0,0.03]
[1766647665834,0.0113909,87851.0,87845.0,0.03]
[1766647666954,0.0113904,87855.0,87845.0,0.03]
[1766647670849,0.0113908,87852.0,87845.0,0.03]
[1766647672143,0.0113908,87852.0,87842.0,0.00017074]
[1766647672342,0.0113908,87852.0,87842.0,0.03017074]
[1766647677052,0.011391,87850.0,87842.0,0.03017074]
[1766647678561,0.0113913,87848.0,87842.0,0.03017074]
[1766647680455,0.0113909,87851.0,87842.0,0.03017074]
[1766647681752,0.0113912,87849.0,87842.0,0.03017074]
[1766647681952,0.0113898,87860.0,87842.0,4e-08]
[1766647682152,0.0113914,87847.0,87842.0,4e-08]
[1766647682353,0.0113917,87845.0,87842.0,4e-08]
[1766647682759,0.0113917,87845.0,87835.0,0.04100527]
[1766647682955,0.0113917,87845.0,87835.0,0.07100527]
[1766647683457,0.00017074,87849.0,87835.0,0.03]
[1766647683851,0.0113917,87845.0,87835.0,0.03]
[1766647688966,0.0113919,87843.0,87835.0,0.03]
[1766647689165,0.0113922,87841.0,87835.0,0.03]
[1766647690859,0.0113918,87844.0,87835.0,0.03]
[1766647699362,0.0113914,87847.0,87835.0,0.03]
[1766647702473,0.0113917,87845.0,87835.0,0.03]
[1766647728284,0.00017074,87849.0,87835.0,0.03]
[1766647729390,0.0113917,87845.0,87835.0,0.03]
[1766647738796,0.00017074,87849.0,87835.0,0.03]
[1766647740396,0.0113916,87845.0,87835.0,0.03]
[1766647748395,0.0113913,87848.0,87835.0,0.03]
[1766647748701,0.00017074,87849.0,87835.0,0.03]
[1766647750205,0.01156184,87849.0,87835.0,0.03]
[1766647751601,0.00017074,87849.0,87835.0,0.03]
[1766647753392,0.0113912,87848.0,87835.0,0.03]
[1766647754503,0.00017074,87849.0,87835.0,0.03]
[1766647755006,0.00017074,87849.0,87836.0,0.0113927]
[1766647755189,0.00017074,87849.0,87836.0,0.0413927]
[1766647761114,0.00017074,87849.0,87836.0,0.03]
[1766647769610,0.00017074,87849.0,87837.0,0.0113926]
[1766647769813,0.00017074,87849.0,87837.0,0.0413926]
[1766647772612,0.00017074,87849.0,87837.0,0.03]
[1766647779909,0.01156184,87849.0,87837.0,0.03]
[1766647781420,0.00017074,87849.0,87837.0,0.03]
[1766647801340,0.0113916,87845.0,87837.0,0.03]
[1766647802238,0.00017074,87849.0,87833.0,0.05927706]
[1766647802443,0.00017074,87849.0,87819.0,1.534376]
[1766647802444,0.00017074,87849.0,87830.0,0.03144153]
[1766647802640,0.0113932,87834.0,87830.0,0.01]
[1766647802941,0.0113929,87835.0,87819.0,0.0298]
[1766647803142,0.0113929,87835.0,87819.0,0.0598]
[1766647803648,0.0113925,87838.0,87819.0,0.0598]
[1766647803848,0.0113925,87838.0,87820.0,0.0113948]
[1766647804048,0.0113925,87838.0,87820.0,0.0413948]
[1766647805548,0.0113925,87838.0,87820.0,0.03]
[1766647808351,0.0113925,87838.0,87821.0,0.0113947]
[1766647808550,0.0113925,87838.0,87821.0,0.0413947]
[1766647812449,0.0164,87840.0,87824.0,0.0113943]
[1766647812649,0.0113917,87844.0,87824.0,0.03]
[1766647812948,0.00904,87843.0,87824.0,0.03]
[1766647814251,0.00904,87843.0,87826.0,0.011394]
[1766647814452,0.00904,87843.0,87826.0,0.041394]
[1766647815350,0.011392,87842.0,87826.0,0.041394]
[1766647821856,0.0113923,87840.0,87826.0,0.03]
[1766647826956,0.0113926,87838.0,87826.0,0.03]
[1766647827863,0.00904,87843.0,87826.0,0.041394]
[1766647828666,0.0113923,87840.0,87826.0,0.03]
[1766647830665,0.0204319,87843.0,87827.0,0.0113939]
[1766647830965,0.0204319,87843.0,87827.0,0.0413939]
[1766647832159,0.0113922,87841.0,87827.0,0.03]
[1766647832755,0.0113924,87839.0,87827.0,0.03]
[1766647835569,0.0113925,87839.0,87827.0,0.03]
[1766647835866,0.0113923,87840.0,87827.0,0.03]
[1766647837068,0.0113926,87838.0,87827.0,0.03]
[1766647841471,0.0113925,87839.0,87827.0,0.03]
[1766647845878,0.0113923,87840.0,87827.0,0.03]
[1766647847681,0.00904,87843.0,87827.0,0.03]
[1766647849172,0.0113922,87841.0,87827.0,0.03]
[1766647851783,0.0113924,87839.0,87827.0,0.03]
[1766647860206,0.0113921,87842.0,87827.0,0.03]
[1766647860506,0.011392,87842.0,87827.0,0.03]
[1766647862705,0.0113923,87840.0,87827.0,0.03]
[1766647870712,0.0329519,87843.0,87827.0,0.03]
[1766647871915,0.0113924,87839.0,87827.0,0.03]
[1766647875622,0.02156,87843.0,87827.0,0.03]
[1766647875822,0.0113926,87838.0,87827.0,0.03]
[1766647879623,0.0113928,87836.0,87827.0,0.03]
[1766647880323,0.0113934,87832.0,87827.0,0.03]
[1766647880623,0.02156,87843.0,87827.0,0.03]
[1766647880824,0.0113931,87834.0,87827.0,0.03]
[1766647882927,0.0113926,87838.0,87827.0,0.03]
[1766647883125,0.0113928,87836.0,87827.0,0.03]
[1766647889025,0.0113931,87834.0,87827.0,0.03]
[1766647893031,0.0244,87843.0,87819.0,0.0298]
[1766647893228,0.0113923,87840.0,87818.0,4e-08]
[1766647893420,0.011395,87819.0,87818.0,4e-08]
[1766647893827,0.011395,87819.0,87807.0,0.057]
[1766647894029,0.011395,87819.0,87807.0,0.087]
[1766647895136,0.01156544,87822.0,87807.0,0.087]
[1766647900728,0.00017074,87822.0,87807.0,0.03]
[1766647901334,0.0113948,87821.0,87807.0,0.03]
[1766647901541,0.00017074,87822.0,87807.0,0.03]
[1766647902132,0.0113951,87819.0,87807.0,0.03]
[1766647906943,0.0113953,87817.0,87807.0,0.03]
[1766647910046,0.00017074,87822.0,87807.0,0.03]
[1766647911248,0.0113949,87820.0,87807.0,0.03]
[1766647915049,0.00017074,87822.0,87807.0,0.03]
[1766647916247,0.011395,87819.0,87807.0,0.03]
[1766647922857,0.00017074,87822.0,87807.0,0.03]
[1766647922858,0.0113953,87817.0,87807.0,0.03]
[1766647924456,0.0113949,87820.0,87807.0,0.03]
[1766647926448,0.00017074,87822.0,87807.0,0.03]
[1766647926652,0.00017074,87822.0,87808.0,0.0113963]
[1766647926947,0.0113947,87821.0,87808.0,0.03]
[1766647932065,0.011395,87819.0,87808.0,0.03]
[1766647932867,0.00017074,87822.0,87805.0,0.04972]
[1766647933058,0.00017074,87822.0,87803.0,8e-08]
[1766647933059,0.0113968,87805.0,87803.0,8e-08]
[1766647933367,0.0113965,87808.0,87803.0,0.05700008]
[1766647933565,0.00017074,87822.0,87803.0,0.03000008]
[1766647933766,0.0113967,87806.0,87803.0,8e-08]
[1766647934270,0.0113962,87810.0,87803.0,8e-08]
[1766647936664,0.01132,87820.0,87803.0,8e-08]
[1766647936860,0.011395,87819.0,87803.0,8e-08]
[1766647937061,0.0113953,87817.0,87803.0,8e-08]
[1766647942167,0.0113953,87817.0,87803.0,0.01139708]
[1766647942876,0.0227149,87820.0,87803.0,0.01139708]
[1766647943778,0.0113952,87818.0,87803.0,0.01139708]
[1766647944380,0.01132,87820.0,87805.0,0.0113967]
[1766647944575,0.01132,87820.0,87806.0,0.0113966]
[1766647944779,0.01132,87820.0,87806.0,0.0413966]
[1766647945480,0.00017074,87822.0,87806.0,0.0413966]
[1766647945481,0.00017074,87822.0,87808.0,0.0113963]
[1766647945681,0.0142,87825.0,87808.0,0.0413963]
[1766647945980,0.0113946,87822.0,87808.0,0.03]
[1766647951584,0.0113949,87820.0,87808.0,0.03]
[1766647964111,0.0113947,87822.0,87808.0,0.03]
[1766647964613,0.0113945,87823.0,87808.0,0.03]
[1766647965917,0.0113948,87821.0,87808.0,0.03]
[1766647967309,0.01156514,87824.0,87808.0,0.03]
[1766647967614,0.02471629,87823.0,87808.0,0.03]
[1766647967914,0.02471629,87822.0,87808.0,0.03]
[1766647968212,0.02471629,87821.0,87808.0,0.03]
[1766647968513,0.01156514,87824.0,87808.0,0.03]
[1766647968704,0.02471713,87823.0,87808.0,0.03]
[1766647968904,0.02471713,87822.0,87808.0,0.03]
[1766647969104,0.02471713,87821.0,87808.0,0.03]
[1766647969304,0.01156514,87824.0,87808.0,0.03]
[1766647969605,0.02471816,87823.0,87808.0,0.03]
[1766647969805,0.02471816,87822.0,87808.0,0.03]
[1766647970005,0.02471816,87821.0,87808.0,0.03]
[1766647970210,0.01156514,87824.0,87808.0,0.03]
[1766647970412,0.02471779,87823.0,87808.0,0.03]
[1766647970612,0.02471779,87822.0,87808.0,0.03]
[1766647970818,0.02471779,87821.0,87808.0,0.03]
[1766647971020,0.01156514,87824.0,87808.0,0.03]
[1766647971313,0.02471921,87823.0,87808.0,0.03]
[1766647971616,0.02471921,87822.0,87809.0,0.0113962]
[1766647971808,0.01156514,87824.0,87809.0,0.0413962]
[1766647971809,0.02471921,87821.0,87809.0,0.0413962]
[1766647972117,0.01156514,87824.0,87809.0,0.0413962]
[1766647972422,0.02472144,87823.0,87809.0,0.0413962]
[1766647972612,0.02472144,87822.0,87809.0,0.0413962]
[1766647972813,0.02472144,87821.0,87809.0,0.0413962]
[1766647973014,0.01156514,87824.0,87809.0,0.0413962]
[1766647973219,0.0247218,87823.0,87809.0,0.0413962]
[1766647973414,0.0247218,87822.0,87809.0,0.0413962]
[1766647973603,0.0247218,87821.0,87809.0,0.0413962]
[1766647973809,0.01156514,87824.0,87809.0,0.0413962]
[1766647974110,0.02472222,87823.0,87809.0,0.0413962]
[1766647974411,0.02472222,87822.0,87809.0,0.0413962]
[1766647974611,0.02472222,87821.0,87809.0,0.0413962]
[1766647974921,0.00017074,87824.0,87809.0,0.0413962]
[1766647975109,0.02472261,87823.0,87809.0,0.0413962]
[1766647975309,0.02472261,87822.0,87809.0,0.0413962]
[1766647975610,0.02472261,87821.0,87809.0,0.0413962]
[1766647975904,0.00017074,87824.0,87809.0,0.0413962]
[1766647976219,0.0247226,87823.0,87809.0,0.0413962]
[1766647976415,0.0247226,87822.0,87809.0,0.0413962]
[1766647976615,0.0247226,87821.0,87809.0,0.0413962]
[1766647976816,0.00017074,87824.0,87809.0,0.0413962]
[1766647977016,0.02472255,87823.0,87809.0,0.0413962]
[1766647977216,0.02472255,87822.0,87809.0,0.0413962]
[1766647977515,0.02472255,87821.0,87809.0,0.0413962]
[1766647977718,0.00017074,87824.0,87809.0,0.0413962]
[1766647977914,0.02472244,87823.0,87809.0,0.0413962]
[1766647978224,0.02472244,87822.0,87809.0,0.0413962]
[1766647978415,0.02472244,87821.0,87809.0,0.0413962]
[1766647978614,0.00017074,87824.0,87809.0,0.0413962]
[1766647978819,0.02472234,87823.0,87809.0,0.0413962]
[1766647979124,0.02472234,87822.0,87809.0,0.0413962]
[1766647979421,0.02472234,87821.0,87809.0,0.0413962]
[1766647979621,0.00017074,87824.0,87809.0,0.0413962]
[1766647979922,0.02472225,87823.0,87809.0,0.0413962]
[1766647980119,0.00017074,87824.0,87809.0,0.0413962]
[1766647980120,0.02472225,87822.0,87809.0,0.0413962]
[1766647980319,0.02472225,87821.0,87809.0,0.0413962]
[1766647980619,0.0113945,87823.0,87809.0,0.03]
[1766647980821,0.02472218,87822.0,87809.0,0.03]
[1766647981119,0.02472218,87821.0,87809.0,0.03]
[1766647981311,0.0113945,87823.0,87809.0,0.03]
[1766647981511,0.02472213,87822.0,87809.0,0.03]
[1766647981811,0.02472213,87821.0,87809.0,0.03]
[1766647982008,0.0113945,87823.0,87809.0,0.03]
[1766647982215,0.02472212,87822.0,87809.0,0.03]
[1766647982422,0.02472212,87821.0,87809.0,0.03]
[1766647982722,0.0113945,87823.0,87809.0,0.03]
[1766647982918,0.0247208,87822.0,87809.0,0.03]
[1766647983123,0.0247208,87821.0,87809.0,0.03]
[1766647983417,0.0113945,87823.0,87809.0,0.03]
[1766647983622,0.02471736,87822.0,87809.0,0.03]
[1766647983823,0.02471736,87821.0,87809.0,0.03]
[1766647984023,0.0113945,87823.0,87809.0,0.03]
[1766647984321,0.02471559,87822.0,87809.0,0.03]
[1766647984523,0.02471559,87821.0,87809.0,0.03]
[1766647984724,0.0113945,87823.0,87809.0,0.03]
[1766647984925,0.02471553,87822.0,87809.0,0.03]
[1766647985125,0.02471553,87821.0,87809.0,0.03]
[1766647985425,0.0113945,87823.0,87809.0,0.03]
[1766647985617,0.02471556,87822.0,87809.0,0.03]
[1766647985817,0.02471556,87821.0,87809.0,0.03]
[1766647986025,0.0113945,87823.0,87809.0,0.03]
[1766647986218,0.02471559,87822.0,87809.0,0.03]
[1766647986518,0.02471559,87821.0,87809.0,0.03]
[1766647986717,0.0113945,87823.0,87809.0,0.03]
[1766647986925,0.0247156,87822.0,87809.0,0.03]
[1766647987127,0.0247156,87821.0,87809.0,0.03]
[1766647987326,0.0113945,87823.0,87809.0,0.03]
[1766647987525,0.02471547,87822.0,87809.0,0.03]
[1766647987722,0.02471547,87821.0,87809.0,0.03]
[1766647987918,0.0113945,87823.0,87809.0,0.03]
[1766647988118,0.02471365,87822.0,87809.0,0.03]
[1766647988318,0.02471365,87821.0,87809.0,0.03]
[1766647988621,0.0113945,87823.0,87809.0,0.03]
[1766647988821,0.02471367,87822.0,87809.0,0.03]
[1766647989024,0.02471367,87821.0,87809.0,0.03]
[1766647989324,0.0113945,87823.0,87809.0,0.03]
[1766647989512,0.02471369,87822.0,87809.0,0.03]
[1766647989712,0.02471369,87821.0,87809.0,0.03]
[1766647989913,0.0113945,87823.0,87809.0,0.03]
[1766647990118,0.02471306,87822.0,87809.0,0.03]
[1766647990417,0.02471306,87821.0,87809.0,0.03]
[1766647990614,0.0113945,87823.0,87809.0,0.03]
[1766647990828,0.02471315,87822.0,87809.0,0.03]
[1766647991130,0.02471315,87821.0,87809.0,0.03]
[1766647991426,0.0113945,87823.0,87809.0,0.03]
[1766647991627,0.0247132,87822.0,87809.0,0.03]
[1766647991827,0.0247132,87821.0,87809.0,0.03]
[1766647992027,0.0113945,87823.0,87809.0,0.03]
[1766647992228,0.0247129,87822.0,87809.0,0.03]
[1766647992528,0.0247129,87821.0,87809.0,0.03]
[1766647992726,0.00017074,87824.0,87809.0,0.03]
[1766647992923,0.0113953,87817.0,87809.0,0.03]
[1766647993229,0.00017074,87824.0,87809.0,0.03]
[1766647993526,0.0113952,87818.0,87809.0,0.03]
[1766647994828,0.00017074,87824.0,87809.0,0.03]
[1766647995022,0.0113957,87814.0,87809.0,0.03]
[1766647995428,0.0113958,87813.0,87809.0,0.01]
[1766647996328,0.0113958,87813.0,87799.0,0.11849317]
[1766647996529,0.0113958,87813.0,87799.0,0.12849317]
[1766647997132,0.00621304,87813.0,87799.0,0.12849317]
[1766647997528,0.0113954,87816.0,87799.0,0.12849317]
[1766647999635,0.0113954,87816.0,87800.0,0.06149317]
[1766647999826,0.0113957,87814.0,87800.0,0.09149317]
[1766648000027,0.0113959,87813.0,87800.0,0.09149317]
[1766648000235,0.0113959,87813.0,87800.0,0.03]
[1766648001334,0.00017074,87824.0,87802.0,0.0113971]
[1766648001633,0.02470339,87823.0,87802.0,0.0413971]
[1766648001837,0.02470339,87822.0,87804.0,0.0113968]
[1766648002030,0.02470339,87821.0,87804.0,0.0413968]
[1766648002341,0.0113942,87825.0,87805.0,0.0113967]
[1766648002539,0.02470365,87824.0,87806.0,0.057]
[1766648002735,0.0113942,87825.0,87806.0,0.087]
[1766648002935,0.02470358,87824.0,87806.0,0.087]
[1766648003131,0.0113942,87825.0,87806.0,0.087]
[1766648003336,0.02487415,87824.0,87806.0,0.087]
[1766648003539,0.00017074,87824.0,87806.0,0.087]
[1766648010746,0.0113945,87823.0,87806.0,0.087]
[1766648012249,0.02470214,87822.0,87806.0,0.087]
[1766648012439,0.0113945,87823.0,87806.0,0.087]
[1766648012749,0.02470214,87822.0,87806.0,0.087]
[1766648012949,0.0113945,87823.0,87806.0,0.087]
[1766648013150,0.02470214,87822.0,87806.0,0.087]
[1766648013448,0.0113945,87823.0,87806.0,0.087]
[1766648013649,0.02470204,87822.0,87806.0,0.087]
[1766648013849,0.0113945,87823.0,87806.0,0.087]
[1766648014048,0.02470207,87822.0,87806.0,0.087]
[1766648014249,0.0113945,87823.0,87806.0,0.087]
[1766648014550,0.02470195,87822.0,87806.0,0.087]
[1766648014851,0.0113945,87823.0,87806.0,0.087]
[1766648015149,0.02470195,87822.0,87806.0,0.087]
[1766648015352,0.0113945,87823.0,87806.0,0.087]
[1766648015546,0.02470185,87822.0,87806.0,0.087]
[1766648015746,0.0113945,87823.0,87806.0,0.087]
[1766648015947,0.02470186,87822.0,87806.0,0.087]
[1766648016261,0.0113945,87823.0,87806.0,0.087]
[1766648016455,0.02470167,87822.0,87806.0,0.087]
[1766648016760,0.02470176,87821.0,87806.0,0.087]
[1766648017062,0.0113953,87817.0,87806.0,0.087]
[1766648017260,0.00017074,87824.0,87806.0,0.03]
[1766648017458,0.0113959,87813.0,87806.0,0.03]
[1766648017663,0.0113961,87811.0,87802.0,0.057]
[1766648017853,0.0113954,87816.0,87802.0,0.087]
[1766648020861,0.011395,87819.0,87802.0,0.087]
[1766648021255,0.01149074,87824.0,87802.0,0.087]
[1766648021560,0.02469907,87823.0,87802.0,0.087]
[1766648021761,0.02469907,87822.0,87802.0,0.087]
[1766648021960,0.01149074,87824.0,87802.0,0.087]
[1766648022161,0.02469928,87823.0,87806.0,0.0113966]
[1766648022361,0.02469928,87822.0,87806.0,0.0413966]
[1766648022547,0.02288514,87824.0,87806.0,0.0413966]
[1766648022749,0.02469923,87823.0,87806.0,0.0413966]
[1766648022962,0.02469923,87822.0,87806.0,0.0413966]
[1766648023163,0.02288514,87824.0,87806.0,0.0413966]
[1766648023463,0.02469875,87823.0,87808.0,0.0113963]
[1766648023663,0.01149074,87824.0,87808.0,0.0413963]
[1766648023862,0.02469859,87823.0,87808.0,0.0413963]
[1766648024064,0.01149074,87824.0,87808.0,0.0413963]
[1766648024266,0.02469859,87823.0,87808.0,0.0413963]
[1766648024454,0.01149074,87824.0,87808.0,0.0413963]
[1766648024654,0.02469847,87823.0,87808.0,0.0413963]
[1766648024854,0.01149074,87824.0,87808.0,0.0413963]
[1766648025155,0.02469846,87823.0,87808.0,0.0413963]
[1766648025454,0.01149074,87824.0,87808.0,0.0413963]
[1766648025654,0.02469807,87823.0,87808.0,0.0413963]
[1766648025856,0.01149074,87824.0,87808.0,0.0413963]
[1766648026054,0.02469809,87823.0,87808.0,0.0413963]
[1766648026255,0.01149074,87824.0,87808.0,0.0413963]
[1766648026553,0.02473959,87823.0,87808.0,0.0413963]
[1766648026851,0.01149074,87824.0,87808.0,0.0413963]
[1766648027050,0.02473946,87823.0,87808.0,0.0413963]
[1766648027249,0.01149074,87824.0,87808.0,0.0413963]
[1766648027463,0.02473949,87823.0,87808.0,0.0413963]
[1766648027665,0.01149074,87824.0,87808.0,0.0413963]
[1766648027865,0.02473947,87823.0,87808.0,0.0413963]
[1766648028164,0.01149074,87824.0,87808.0,0.0413963]
[1766648028367,0.00017074,87824.0,87808.0,0.03]
[1766648028558,0.0113936,87830.0,87808.0,0.03]
[1766648029560,0.00017074,87828.0,87808.0,0.03]
[1766648030369,0.01156464,87828.0,87812.0,0.0113958]
[1766648030557,0.01156464,87828.0,87813.0,0.057]
[1766648030763,0.01156464,87828.0,87813.0,0.087]
[1766648037675,0.00017074,87828.0,87813.0,0.087]
[1766648039770,0.00017074,87828.0,87813.0,0.0983957]
[1766648040377,0.02468473,87827.0,87813.0,0.0983957]
[1766648040577,0.02468473,87826.0,87813.0,0.0983957]
[1766648040779,0.02468473,87825.0,87813.0,0.0983957]
[1766648040973,0.02468473,87824.0,87813.0,0.0983957]
[1766648041180,0.00017074,87828.0,87813.0,0.0983957]
[1766648041379,0.02468459,87827.0,87813.0,0.0983957]
[1766648041579,0.02468459,87826.0,87813.0,0.0983957]
[1766648041774,0.02468459,87825.0,87813.0,0.0983957]
[1766648041974,0.02468459,87824.0,87813.0,0.0983957]
[1766648042172,0.00017074,87828.0,87813.0,0.0983957]
[1766648042377,0.02468451,87827.0,87813.0,0.0983957]
[1766648042578,0.02468451,87826.0,87813.0,0.087]
[1766648042777,0.0113944,87824.0,87813.0,0.087]
[1766648043084,0.00017074,87828.0,87813.0,0.03]
[1766648043085,0.0113951,87819.0,87813.0,0.03]
[1766648043475,0.0113947,87822.0,87813.0,0.03]
[1766648052291,0.0113943,87825.0,87813.0,0.03]
[1766648052491,0.02468645,87824.0,87813.0,0.03]
[1766648052688,0.02468645,87823.0,87813.0,0.03]
[1766648052887,0.0113943,87825.0,87813.0,0.03]
[1766648053089,0.02468651,87824.0,87813.0,0.03]
[1766648053285,0.02468651,87823.0,87813.0,0.03]
[1766648053487,0.02468651,87822.0,87813.0,0.03]
[1766648053687,0.02468651,87821.0,87813.0,0.03]
[1766648053887,0.0113943,87825.0,87813.0,0.03]
[1766648054088,0.02468637,87824.0,87813.0,0.03]
[1766648054289,0.02468637,87823.0,87813.0,0.03]
[1766648054492,0.02468637,87822.0,87813.0,0.03]
[1766648054795,0.0113943,87825.0,87813.0,0.03]
[1766648054992,0.02468608,87824.0,87813.0,0.03]